bitfinex/quotes_BTCUSD_20220307
["timestamp","ask_amount","ask_price","bid_price","bid_amount"]
[1646657831027,0.832384,38658.0,38657.0,0.40163349]
[1646657831426,1.132384,38658.0,38657.0,0.40163349]
[1646657831728,0.737667,38658.0,38656.0,0.00029935]
[1646657831921,0.694717,38657.0,38656.0,0.00029935]
[1646657832123,0.687667,38657.0,38656.0,0.00029935]
[1646657832322,0.02596,38656.0,38646.0,0.621317]
[1646657832523,0.21496614,38649.0,38647.0,0.064726]
[1646657832726,0.21496614,38649.0,38648.0,0.11905348]
[1646657832922,0.21496614,38649.0,38647.0,0.064726]
[1646657833522,0.387667,38648.0,38646.0,0.2366]
[1646657833729,0.338943,38647.0,38646.0,0.2368994]
[1646657833922,1.02661,38647.0,38646.0,0.2368994]
[1646657834127,0.77661,38647.0,38646.0,0.2368994]
[1646657834324,0.77661,38647.0,38645.0,0.329251]
[1646657834325,1.132384,38647.0,38645.0,0.329251]
[1646657834624,0.755382,38646.0,38643.0,0.001]
[1646657834882,0.394717,38644.0,38643.0,0.001]
[1646657835079,0.782384,38644.0,38643.0,0.261]
[1646657835278,0.882384,38644.0,38643.0,0.261]
[1646657835484,1.032384,38644.0,38643.0,0.261]
[1646657835780,1.084084,38644.0,38643.0,0.261]
[1646657836179,0.934084,38644.0,38643.0,0.261]
[1646657836383,0.87831,38644.0,38643.0,0.261]
[1646657836582,0.439367,38644.0,38643.0,0.261]
[1646657836981,0.834084,38644.0,38643.0,0.261]
[1646657837181,0.838084,38644.0,38643.0,0.311]
[1646657837580,0.443367,38644.0,38643.0,0.311]
[1646657837980,0.838084,38644.0,38643.0,0.311]
[1646657838622,0.834084,38644.0,38643.0,0.311]
[1646657840626,0.439367,38644.0,38643.0,0.311]
[1646657841027,0.387667,38644.0,38643.0,0.311]
[1646657841235,0.391667,38644.0,38643.0,0.311]
[1646657843167,0.387667,38644.0,38643.0,0.311]
[1646657843970,0.214727,38652.0,38645.0,0.22030203]
[1646657844168,0.394717,38651.0,38645.0,0.39975103]
[1646657844370,0.1,38654.0,38646.0,0.3]
[1646657844568,0.1,38655.0,38646.0,0.3]
[1646657844773,0.06472,38656.0,38645.0,0.39532603]
[1646657844968,0.394717,38653.0,38645.0,0.175024]
[1646657845166,0.77619,38652.0,38645.0,0.175024]
[1646657845367,0.338943,38651.0,38646.0,0.129449]
[1646657845571,0.394717,38649.0,38647.0,0.05]
[1646657845767,0.9762806,38648.0,38647.0,0.05]
[1646657846020,1.115133,38648.0,38647.0,0.05]
[1646657846325,1.170907,38648.0,38647.0,0.05]
[1646657846518,0.77619,38648.0,38647.0,0.05]
[1646657847121,1.115133,38648.0,38647.0,0.30416395]
[1646657847326,0.78019,38648.0,38647.0,0.30416395]
[1646657847725,0.78019,38648.0,38647.0,0.05]
[1646657847726,0.83019,38648.0,38647.0,0.05]
[1646657847926,1.224907,38648.0,38646.0,0.129449]
[1646657848125,0.338943,38647.0,38646.0,0.129449]
[1646657848525,0.338943,38647.0,38646.0,0.189749]
[1646657849028,0.82759007,38648.0,38646.0,0.129449]
[1646657849229,0.82759007,38648.0,38647.0,0.05]
[1646657849426,1.22230707,38648.0,38647.0,0.05]
[1646657849627,0.82759007,38648.0,38647.0,0.05]
[1646657849871,0.77759007,38648.0,38647.0,0.05]
[1646657850069,0.77759007,38648.0,38647.0,0.35]
[1646657850270,0.77759007,38648.0,38647.0,0.796417]
[1646657850469,0.1,38659.0,38648.0,1.25]
[1646657850669,0.5779,38662.0,38657.0,0.24713148]
[1646657850868,0.2499999,38663.0,38658.0,0.064701]
[1646657851469,0.394717,38664.0,38658.0,0.064701]
[1646657851668,0.394717,38664.0,38657.0,0.129401]
[1646657851669,0.485392,38664.0,38657.0,0.129401]
[1646657852071,0.585392,38664.0,38657.0,0.129401]
[1646657852473,0.17629661,38659.0,38657.0,0.129401]
[1646657852672,0.338943,38658.0,38657.0,0.129401]
[1646657854521,1.114993,38658.0,38657.0,0.129401]
[1646657855124,0.77605,38658.0,38657.0,0.129401]
[1646657855326,0.77905,38658.0,38657.0,0.129401]
[1646657855521,0.77905,38658.0,38657.0,0.389401]
[1646657855922,1.173767,38658.0,38657.0,0.389401]
[1646657856520,1.170767,38658.0,38657.0,0.389401]
[1646657857370,1.173767,38658.0,38657.0,0.389401]
[1646657858572,1.170767,38658.0,38657.0,0.389401]
[1646657859172,1.173767,38658.0,38657.0,0.389401]
[1646657860074,0.77905,38658.0,38657.0,0.389401]
[1646657860277,0.390808,38658.0,38657.0,0.389401]
[1646657860475,0.387808,38658.0,38657.0,0.389401]
[1646657860674,0.387808,38658.0,38657.0,0.689401]
[1646657860876,0.27109,38668.0,38658.0,1.2]
[1646657860877,0.1,38666.0,38658.0,1.2]
[1646657861174,0.6841,38674.0,38665.0,0.18588226]
[1646657861175,0.11293,38671.0,38665.0,0.18588226]
[1646657861351,1.087568,38673.0,38665.0,0.18588226]
[1646657861352,0.289368,38673.0,38665.0,0.39077245]
[1646657861548,0.00026173,38669.0,38665.0,0.69077245]
[1646657861748,0.00026173,38669.0,38665.0,0.39077245]
[1646657862351,0.11293,38675.0,38665.0,0.45546045]
[1646657862551,0.394717,38674.0,38665.0,0.75546045]
[1646657862749,0.00026176,38669.0,38665.0,0.75546045]
[1646657862959,0.00026176,38669.0,38668.0,0.1998]
[1646657863253,0.39497876,38669.0,38668.0,0.2498]
[1646657863652,1.170547,38669.0,38668.0,0.2498]
[1646657863852,1.220547,38669.0,38668.0,0.05]
[1646657864052,1.320547,38669.0,38665.0,0.064688]
[1646657864252,1.320547,38669.0,38665.0,0.114688]
[1646657864452,0.338943,38666.0,38665.0,0.064688]
[1646657864653,1.114773,38666.0,38665.0,0.114688]
[1646657864873,1.114773,38666.0,38665.0,0.064688]
[1646657864874,1.164773,38666.0,38665.0,0.064688]
[1646657865074,1.264773,38666.0,38665.0,0.064688]
[1646657865274,1.268773,38666.0,38665.0,0.064688]
[1646657865874,1.268773,38666.0,38665.0,0.324688]
[1646657866477,1.264773,38666.0,38665.0,0.324688]
[1646657866874,1.164773,38666.0,38665.0,0.324688]
[1646657867679,1.114773,38666.0,38665.0,0.324688]
[1646657867878,0.77583,38666.0,38665.0,0.324688]
[1646657868079,0.77583,38666.0,38665.0,0.374688]
[1646657869338,0.77883,38666.0,38665.0,0.374688]
[1646657870540,0.77583,38666.0,38665.0,0.374688]
[1646657870741,1.170547,38666.0,38665.0,0.374688]
[1646657871139,1.114773,38666.0,38665.0,0.374688]
[1646657871338,1.170547,38666.0,38665.0,0.374688]
[1646657872139,0.77583,38666.0,38665.0,0.374688]
[1646657872379,1.170547,38666.0,38665.0,0.374688]
[1646657873174,1.1702001,38666.0,38665.0,0.374688]
[1646657873377,1.1742001,38666.0,38665.0,0.374688]
[1646657874479,1.1742001,38666.0,38665.0,0.324688]
[1646657874480,1.2202001,38666.0,38665.0,0.324688]
[1646657875277,1.2232001,38666.0,38665.0,0.324688]
[1646657876321,1.35262879,38666.0,38665.0,0.324688]
[1646657876529,1.34962879,38666.0,38665.0,0.324688]
[1646657876724,1.2202001,38666.0,38665.0,0.324688]
[1646657877524,1.2202001,38666.0,38665.0,0.11110526]
[1646657877724,0.364903,38664.0,38658.0,0.1998]
[1646657877924,1.21787145,38663.0,38658.0,0.1998]
[1646657878123,0.12596,38659.0,38647.0,0.7723]
[1646657878322,0.12596,38659.0,38650.0,0.1998]
[1646657878323,1.1661261,38658.0,38650.0,0.1998]
[1646657878527,1.1661261,38658.0,38653.0,0.129457]
[1646657878528,1.2661261,38658.0,38653.0,0.129457]
[1646657878724,1.3161261,38658.0,38653.0,0.129457]
[1646657878923,1.2903861,38658.0,38653.0,0.129457]
[1646657879125,0.1,38655.0,38653.0,0.129457]
[1646657879324,1.1661261,38654.0,38653.0,0.129457]
[1646657879525,0.9972407,38654.0,38653.0,0.129457]
[1646657879779,1.2972407,38654.0,38653.0,0.129457]
[1646657881181,0.9972407,38654.0,38653.0,0.129457]
[1646657881378,0.9972407,38654.0,38653.0,0.179457]
[1646657881781,0.99695964,38654.0,38653.0,0.179457]
[1646657884429,0.95995964,38654.0,38653.0,0.179457]
[1646657884624,0.56527164,38654.0,38653.0,0.179457]
[1646657884826,0.90825964,38654.0,38653.0,0.179457]
[1646657885026,0.51357164,38654.0,38653.0,0.179457]
[1646657885327,0.90825964,38654.0,38653.0,0.179457]
[1646657885927,0.51357164,38654.0,38653.0,0.179457]
[1646657886527,0.51357164,38654.0,38653.0,0.439457]
[1646657887376,0.90825964,38654.0,38653.0,0.439457]
[1646657890579,0.51357164,38654.0,38653.0,0.439457]
[1646657890780,0.90825964,38654.0,38653.0,0.439457]
[1646657891022,0.51357164,38654.0,38653.0,0.439457]
[1646657893127,0.51357164,38654.0,38653.0,0.83436]
[1646657893325,0.44887564,38654.0,38653.0,0.83436]
[1646657893526,0.06065164,38654.0,38653.0,0.86024394]
[1646657893824,0.06065164,38654.0,38653.0,0.43971584]
[1646657897584,0.06065164,38654.0,38653.0,0.38971584]
[1646657899324,0.06065164,38654.0,38653.0,0.43971584]
[1646657901024,0.45533964,38654.0,38653.0,0.43971584]
[1646657901224,0.45533964,38654.0,38653.0,0.31025884]
[1646657901526,0.06065164,38654.0,38653.0,0.31025884]
[1646657903374,0.06065164,38654.0,38653.0,0.31]
[1646657904580,0.45533964,38654.0,38653.0,0.31]
[1646657904775,0.55533964,38654.0,38653.0,0.31]
[1646657904975,0.65533964,38654.0,38653.0,0.31]
[1646657905375,0.70703964,38654.0,38653.0,0.31]
[1646657905675,0.75703964,38654.0,38653.0,0.26]
[1646657906125,0.75703964,38654.0,38653.0,0.25933538]
[1646657906521,0.82177364,38654.0,38653.0,0.25933538]
[1646657907327,0.75703964,38654.0,38653.0,0.25933538]
[1646657910678,0.82176564,38654.0,38653.0,0.25933538]
[1646657911879,0.75703964,38654.0,38653.0,0.25933538]
[1646657912079,0.65703964,38654.0,38653.0,0.25933538]
[1646657914237,0.09350758,38654.0,38653.0,0.25933538]
[1646657914437,0.0517,38654.0,38653.0,0.25933538]
[1646657914639,0.0517,38654.0,38653.0,0.30933538]
[1646657914842,0.82783,38654.0,38653.0,0.30933538]
[1646657915438,0.77613,38654.0,38653.0,0.30933538]
[1646657916038,0.8155184,38654.0,38653.0,0.70424038]
[1646657916240,0.8155184,38654.0,38653.0,0.30933538]
[1646657917480,0.77613,38654.0,38653.0,0.30933538]
[1646657920282,1.17613,38654.0,38653.0,0.25933538]
[1646657920679,1.27613,38654.0,38653.0,0.25933538]
[1646657921033,1.32613,38654.0,38653.0,0.25933538]
[1646657922637,1.02613,38654.0,38653.0,0.25933538]
[1646657923635,0.92613,38654.0,38653.0,0.25933538]
[1646657924780,0.87613,38654.0,38653.0,0.25933538]
[1646657925179,0.77613,38654.0,38653.0,0.30933538]
[1646657934176,0.72925245,38654.0,38653.0,0.30933538]
[1646657935578,0.82925245,38654.0,38653.0,0.25933538]
[1646657935783,1.03095245,38654.0,38653.0,0.25933538]
[1646657936551,1.13095245,38654.0,38653.0,0.25933538]
[1646657936749,1.03095245,38654.0,38653.0,0.25933538]
[1646657938367,1.25,38653.0,38644.0,0.00326427]
[1646657938554,0.090703,38651.0,38646.0,0.00105702]
[1646657938751,0.80691245,38650.0,38646.0,0.00105702]
[1646657939250,0.25758788,38647.0,38646.0,0.00105702]
[1646657939452,1.33854033,38647.0,38644.0,0.003]
[1646657939780,0.1,38645.0,38644.0,0.00326426]
[1646657939981,0.87944312,38645.0,38644.0,0.00326426]
[1646657940179,0.97944312,38645.0,38644.0,0.00326426]
[1646657940383,0.88095245,38645.0,38644.0,0.00326426]
[1646657940582,0.88095245,38645.0,38644.0,0.003]
[1646657940882,0.98094312,38645.0,38644.0,0.003]
[1646657941084,1.03094312,38645.0,38644.0,0.003]
[1646657941281,0.98094312,38645.0,38644.0,0.003]
[1646657941583,0.88095245,38645.0,38644.0,0.003]
[1646657943527,1.01444645,38645.0,38644.0,0.003]
[1646657943726,0.88495245,38645.0,38644.0,0.44922823]
[1646657944527,0.94969745,38645.0,38644.0,0.44922823]
[1646657944927,0.94569745,38645.0,38644.0,0.44922823]
[1646657945531,0.94969745,38645.0,38644.0,0.44922823]
[1646657945733,1.25,38644.0,38643.0,0.29608135]
[1646657945930,2.29388245,38644.0,38643.0,0.00026427]
[1646657946130,0.97596,38643.0,38638.0,0.62525256]
[1646657946326,0.064758,38641.0,38638.0,0.62525256]
[1646657946527,0.78095245,38640.0,38638.0,0.62525256]
[1646657946731,0.1,38639.0,38638.0,0.62525256]
[1646657946929,0.25169067,38639.0,38638.0,0.62525256]
[1646657947128,0.85045904,38639.0,38638.0,0.62525256]
[1646657947979,0.85045904,38639.0,38638.0,0.67525256]
[1646657949579,0.85545904,38639.0,38638.0,0.67525256]
[1646657950679,1.15545904,38639.0,38638.0,0.67525256]
[1646657950880,1.15045904,38639.0,38638.0,0.67525256]
[1646657951535,1.15445904,38639.0,38638.0,0.67525256]
[1646657952337,1.35860628,38639.0,38638.0,0.67525256]
[1646657952939,1.35460628,38639.0,38638.0,0.67525256]
[1646657953137,1.05460628,38639.0,38638.0,0.67525256]
[1646657953638,1.05860628,38639.0,38638.0,0.67525256]
[1646657954038,1.35860628,38639.0,38638.0,0.67525256]
[1646657954887,1.35460628,38639.0,38638.0,0.62525256]
[1646657955090,1.42941628,38639.0,38638.0,0.62525256]
[1646657955282,1.12941628,38639.0,38638.0,0.62525256]
[1646657955482,1.28763855,38639.0,38638.0,0.62525256]
[1646657955682,1.29163855,38639.0,38638.0,0.62525256]
[1646657955884,1.24635628,38639.0,38638.0,0.62525256]
[1646657956283,1.30457855,38639.0,38638.0,0.62525256]
[1646657956490,1.45457855,38639.0,38638.0,0.62525256]
[1646657956887,1.43763855,38639.0,38638.0,0.67525256]
[1646657957081,1.43763855,38639.0,38638.0,0.93525256]
[1646657957884,1.43763855,38639.0,38638.0,0.88525256]
[1646657958082,1.66435393,38639.0,38638.0,0.86353425]
[1646657958282,1.48763855,38639.0,38638.0,0.86353425]
[1646657958830,1.33763855,38639.0,38638.0,0.86353425]
[1646657959035,1.26282855,38639.0,38638.0,0.86353425]
[1646657959330,1.26423531,38639.0,38638.0,0.86353425]
[1646657959931,1.41423531,38639.0,38638.0,0.86353425]
[1646657961132,1.26423531,38639.0,38638.0,0.86353425]
[1646657962133,1.26423531,38639.0,38638.0,0.91353425]
[1646657962134,0.85838807,38639.0,38638.0,0.91353425]
[1646657962388,0.7001658,38639.0,38638.0,0.91353425]
[1646657962584,0.60017513,38639.0,38638.0,0.91353425]
[1646657964085,0.8001658,38639.0,38638.0,0.91353425]
[1646657964682,0.9001658,38639.0,38638.0,0.91353425]
[1646657965684,0.9031658,38639.0,38638.0,0.91353425]
[1646657966141,1.16308807,38639.0,38638.0,0.86353425]
[1646657966347,1.21308807,38639.0,38638.0,0.60678778]
[1646657966539,1.06308807,38639.0,38638.0,0.60678778]
[1646657966742,1.21308807,38639.0,38638.0,0.60322545]
[1646657966941,1.21008807,38639.0,38638.0,0.29961108]
[1646657967141,1.21008807,38639.0,38627.0,0.02113463]
[1646657967142,2.31826,38638.0,38627.0,0.02113463]
[1646657967343,2.31826,38638.0,38627.0,0.02013463]
[1646657967344,0.6461,38629.0,38627.0,0.02013463]
[1646657967541,2.54656837,38628.0,38617.0,0.7807]
[1646657967739,2.54656837,38628.0,38617.0,0.001]
[1646657967740,2.07642837,38628.0,38617.0,0.001]
[1646657967942,0.3,38627.0,38617.0,0.130582]
[1646657968139,0.19999067,38625.0,38623.0,0.001]
[1646657968342,0.95045904,38625.0,38623.0,0.001]
[1646657968541,1.20045904,38625.0,38624.0,0.00129887]
[1646657968740,0.90045904,38625.0,38624.0,0.00129887]
[1646657968941,1.00045904,38625.0,38624.0,0.00129887]
[1646657969143,0.90045904,38625.0,38624.0,0.00129887]
[1646657969343,1.00035904,38625.0,38624.0,1e-08]
[1646657969541,1.12992447,38625.0,38623.0,0.001]
[1646657969791,1.12992447,38625.0,38623.0,0.00129888]
[1646657969990,0.09999067,38624.0,38623.0,0.00129888]
[1646657970290,0.75045904,38624.0,38623.0,0.00129888]
[1646657970691,0.85045904,38624.0,38623.0,0.001]
[1646657971693,0.85345904,38624.0,38623.0,0.001]
[1646657972592,0.84004353,38624.0,38623.0,0.001]
[1646657972792,0.75346837,38624.0,38623.0,0.001]
[1646657972993,0.75046837,38624.0,38623.0,0.001]
[1646657973193,0.85044353,38624.0,38623.0,0.001]
[1646657975827,0.85344353,38624.0,38623.0,0.001]
[1646657976626,0.85344353,38624.0,38622.0,0.110783]
[1646657976827,0.1,38623.0,38622.0,0.11108188]
[1646657977026,0.16148,38624.0,38623.0,0.16]
[1646657977287,0.89321,38624.0,38623.0,0.16]
[1646657977686,0.99618516,38624.0,38623.0,0.16]
[1646657978286,1.09618516,38624.0,38623.0,0.16]
[1646657978690,1.39618516,38624.0,38623.0,0.16]
[1646657978889,1.09618516,38624.0,38623.0,0.16]
[1646657979087,1.19318516,38624.0,38623.0,0.16]
[1646657980787,1.49318516,38624.0,38623.0,0.16]
[1646657981732,1.49618516,38624.0,38623.0,0.16]
[1646657982631,1.49618516,38624.0,38623.0,0.12263943]
[1646657983034,1.19318516,38624.0,38623.0,0.12263943]
[1646657983433,1.49318516,38624.0,38623.0,0.12263943]
[1646657983832,1.49718516,38624.0,38623.0,0.12263943]
[1646657984434,1.19718516,38624.0,38623.0,0.12263943]
[1646657985090,1.19318516,38624.0,38623.0,0.12263943]
[1646657988934,0.94148516,38624.0,38623.0,0.12263943]
[1646657989135,0.87670516,38624.0,38623.0,0.12263943]
[1646657989536,0.48810816,38624.0,38623.0,0.44275567]
[1646657989837,0.09997516,38634.0,38624.0,2.04876876]
[1646657990036,0.77662,38633.0,38631.0,0.21883954]
[1646657990238,0.77662,38633.0,38631.0,0.26883954]
[1646657990836,0.77662,38633.0,38631.0,0.46863954]
[1646657991235,0.90614108,38633.0,38631.0,0.2498]
[1646657991437,0.84138,38633.0,38631.0,0.2498]
[1646657991637,0.89138,38633.0,38631.0,0.2498]
[1646657991839,0.89138,38633.0,38631.0,0.24912201]
[1646657992036,0.09997516,38632.0,38631.0,0.24912201]
[1646657992283,0.87659516,38632.0,38631.0,0.24912201]
[1646657992483,0.87659516,38632.0,38631.0,0.21773361]
[1646657992886,0.87659516,38632.0,38631.0,0.1998]
[1646657993083,0.97659516,38632.0,38631.0,0.1998]
[1646657993582,0.129543,38631.0,38629.0,0.129533]
[1646657993783,0.77662,38630.0,38629.0,0.129533]
[1646657997339,0.77662,38630.0,38629.0,0.389533]
[1646657998341,0.82662,38630.0,38629.0,0.389533]
[1646657999540,0.82662,38630.0,38629.0,0.26]
[1646657999798,0.83062,38630.0,38629.0,0.26]
[1646658000195,0.78062,38630.0,38629.0,0.26]
[1646658000801,0.78062,38630.0,38629.0,0.654905]
[1646658000996,0.77662,38630.0,38629.0,0.680865]
[1646658001498,0.77662,38630.0,38629.0,1.12004331]
[1646658001895,0.78062,38630.0,38629.0,1.18539407]
[1646658002097,0.78062,38630.0,38629.0,1.63539407]
[1646658002298,0.78062,38630.0,38629.0,1.75735188]
[1646658002494,0.78062,38630.0,38629.0,1.69200112]
[1646658002896,0.78062,38630.0,38629.0,1.79190112]
[1646658003096,0.77662,38630.0,38629.0,1.79190112]
[1646658003299,0.77662,38630.0,38629.0,1.49190112]
[1646658003534,0.77662,38630.0,38629.0,1.60300257]
[1646658003934,0.41664977,38643.0,38634.0,0.064728]
[1646658003935,0.26394474,38642.0,38634.0,0.064728]
[1646658004136,0.39340874,38643.0,38637.0,0.02596]
[1646658004336,0.39340874,38643.0,38641.0,0.21242062]
[1646658004538,0.129464,38643.0,38640.0,0.2]
[1646658004736,0.129464,38643.0,38641.0,0.4369277]
[1646658005335,0.77636,38642.0,38641.0,0.7369277]
[1646658005537,0.77636,38642.0,38641.0,1.3077927]
[1646658005837,0.77636,38642.0,38641.0,1.39354175]
[1646658006238,0.77636,38642.0,38641.0,1.78844675]
[1646658006839,0.77636,38642.0,38641.0,1.84337234]
[1646658007307,0.77636,38642.0,38641.0,2.00895871]
[1646658007500,0.77636,38642.0,38641.0,1.95403312]
[1646658007699,0.77636,38642.0,38641.0,1.67590966]
[1646658007898,0.77636,38642.0,38641.0,0.59945735]
[1646658008098,0.77636,38642.0,38641.0,0.57349735]
[1646658008299,0.77636,38642.0,38641.0,0.42349735]
[1646658008500,0.77636,38642.0,38641.0,0.17359735]
[1646658008704,0.77636,38642.0,38641.0,0.19955735]
[1646658009097,0.77636,38642.0,38641.0,0.27231473]
[1646658009498,0.77636,38642.0,38641.0,0.2664777]
[1646658009999,0.77936,38642.0,38641.0,0.2147777]
[1646658010198,0.77936,38642.0,38636.0,0.15]
[1646658010400,0.064745,38641.0,38636.0,0.15]
[1646658010600,0.77636,38640.0,38636.0,0.15]
[1646658010798,0.77636,38640.0,38638.0,0.394905]
[1646658011042,0.77636,38640.0,38637.0,0.394905]
[1646658011643,0.77636,38640.0,38635.0,0.0999]
[1646658011840,0.064756,38638.0,38630.0,1.3042]
[1646658012039,0.064756,38638.0,38630.0,0.164654]
[1646658012040,0.77636,38637.0,38630.0,0.164654]
[1646658012241,0.92803516,38637.0,38630.0,0.0999]
[1646658012452,0.97803516,38637.0,38630.0,0.0999]
[1646658012643,1.04278802,38637.0,38630.0,0.0999]
[1646658012841,1.04278802,38637.0,38626.0,0.516098]
[1646658013042,0.06475,38636.0,38626.0,0.366098]
[1646658013245,0.82806,38635.0,38626.0,0.366098]
[1646658013442,0.0517,38634.0,38626.0,0.366098]
[1646658013644,0.77636,38633.0,38628.0,0.394905]
[1646658013842,0.77636,38633.0,38628.0,0.27629513]
[1646658014042,0.82636,38633.0,38628.0,0.27629513]
[1646658014243,0.82636,38633.0,38629.0,0.064745]
[1646658014643,0.82636,38633.0,38629.0,0.090705]
[1646658014644,0.77636,38633.0,38629.0,0.090705]
[1646658014889,0.77636,38633.0,38630.0,0.674394]
[1646658015091,0.77636,38633.0,38631.0,0.26750018]
[1646658015689,0.77636,38633.0,38632.0,0.394905]
[1646658017092,0.77636,38633.0,38630.0,0.129489]
[1646658017291,0.77136,38633.0,38630.0,0.129489]
[1646658018936,0.77136,38633.0,38630.0,0.389489]
[1646658019135,0.82136,38633.0,38630.0,0.389489]
[1646658019536,0.82136,38633.0,38630.0,0.26]
[1646658019736,0.30732425,38633.0,38630.0,0.26]
[1646658019937,0.31132425,38633.0,38630.0,0.26]
[1646658020340,0.31132425,38633.0,38630.0,0.324746]
[1646658021036,0.30732425,38633.0,38630.0,0.324746]
[1646658021436,0.30732425,38633.0,38632.0,0.15659688]
[1646658021639,0.30732425,38633.0,38632.0,0.15591066]
[1646658023188,0.30732425,38633.0,38632.0,0.55081566]
[1646658023390,0.25732425,38633.0,38632.0,0.55081566]
[1646658023591,0.30732425,38633.0,38632.0,0.55081566]
[1646658025290,0.30732425,38633.0,38632.0,0.15591066]
[1646658025690,0.30732425,38633.0,38632.0,0.55081566]
[1646658027341,0.30732425,38633.0,38632.0,0.15591066]
[1646658027941,0.31232425,38633.0,38632.0,0.15591066]
[1646658028444,0.37707075,38633.0,38630.0,0.424646]
[1646658029042,0.37207075,38633.0,38630.0,0.424646]
[1646658029443,0.37207075,38633.0,38630.0,0.324746]
[1646658029894,0.37207075,38633.0,38630.0,0.26]
[1646658029895,0.364767,38632.0,38630.0,0.26]
[1646658030093,0.55732425,38631.0,38630.0,0.26]
[1646658030295,0.60902425,38631.0,38630.0,0.14430728]
[1646658030493,0.70899941,38631.0,38630.0,0.14430728]
[1646658030693,0.80899941,38631.0,38630.0,0.14430728]
[1646658031091,1.02011508,38631.0,38630.0,0.14430728]
[1646658031293,0.87376541,38631.0,38630.0,0.14430728]
[1646658031595,1.0849825,38631.0,38630.0,0.14430728]
[1646658031796,0.87976541,38631.0,38630.0,0.14430728]
[1646658032192,0.57976541,38631.0,38630.0,0.14430728]
[1646658032393,0.51499941,38631.0,38630.0,0.14430728]
[1646658032992,0.72625368,38631.0,38630.0,0.14430728]
[1646658033193,0.72025368,38631.0,38630.0,0.14430728]
[1646658034245,0.50899941,38631.0,38630.0,0.14430728]
[1646658034642,0.77282306,38631.0,38630.0,0.14430728]
[1646658035040,0.6728479,38631.0,38630.0,0.14430728]
[1646658035440,0.40902425,38631.0,38630.0,0.14430728]
[1646658035842,0.6728479,38631.0,38630.0,0.14430728]
[1646658036041,0.40902425,38631.0,38630.0,0.14430728]
[1646658038388,0.6728479,38631.0,38630.0,0.14430728]
[1646658039292,0.40902425,38631.0,38630.0,0.14430728]
[1646658041857,0.41402425,38631.0,38630.0,0.14430728]
[1646658043056,0.31402425,38631.0,38630.0,0.14430728]
[1646658043656,0.30902425,38631.0,38630.0,0.14430728]
[1646658044058,0.520327,38631.0,38630.0,0.14430728]
[1646658045093,0.60902425,38631.0,38630.0,0.14430728]
[1646658045492,0.8728479,38631.0,38630.0,0.14430728]
[1646658046092,0.6376119,38631.0,38630.0,0.14430728]
[1646658046492,0.47376341,38631.0,38630.0,0.14430728]
[1646658047892,0.73758706,38631.0,38630.0,0.14430728]
[1646658048091,0.47376341,38631.0,38630.0,0.14430728]
[1646658050043,0.064764,38628.0,38624.0,0.37935131]
[1646658050242,0.25732425,38627.0,38624.0,0.37935131]
[1646658050442,0.30732425,38627.0,38624.0,0.37935131]
[1646658050842,0.30732425,38627.0,38626.0,0.129518]
[1646658051044,0.37208719,38627.0,38626.0,0.129518]
[1646658051243,0.37208719,38627.0,38625.0,0.194285]
[1646658052294,0.37208719,38627.0,38625.0,0.344185]
[1646658052691,0.92208719,38627.0,38625.0,0.294185]
[1646658053291,0.92208719,38627.0,38625.0,0.194285]
[1646658053991,0.92608719,38627.0,38625.0,0.194285]
[1646658054192,0.92608719,38627.0,38625.0,0.244285]
[1646658054391,0.4,38626.0,38625.0,0.194285]
[1646658054591,0.70732425,38626.0,38624.0,0.44410931]
[1646658055193,0.9186128,38626.0,38624.0,0.44410931]
[1646658055493,0.30732425,38626.0,38625.0,0.694905]
[1646658055695,0.30732425,38626.0,38625.0,0.394905]
[1646658055891,0.31232425,38626.0,38624.0,0.79687053]
[1646658056141,0.31232425,38626.0,38624.0,0.59400931]
[1646658056740,0.31232425,38626.0,38624.0,0.49410931]
[1646658057140,0.30732425,38626.0,38624.0,0.49410931]
[1646658057542,0.30732425,38626.0,38624.0,0.44410931]
[1646658057744,0.5186128,38626.0,38624.0,0.44410931]
[1646658058141,0.5186128,38626.0,38624.0,0.49410931]
[1646658058841,0.30732425,38626.0,38624.0,0.49410931]
[1646658059042,0.30732425,38626.0,38624.0,0.75410931]
[1646658059242,0.30732425,38626.0,38624.0,0.70410931]
[1646658060303,0.5186128,38626.0,38624.0,0.70410931]
[1646658062105,0.25732425,38626.0,38625.0,0.86055224]
[1646658062508,0.25732425,38626.0,38625.0,0.96045224]
[1646658062706,0.25732425,38626.0,38625.0,0.96071126]
[1646658062907,0.25732425,38626.0,38625.0,1.15254666]
[1646658063105,0.00120194,38628.0,38625.0,1.15254666]
[1646658063306,0.00120194,38628.0,38626.0,1.25]
[1646658063544,0.00120194,38628.0,38627.0,0.81395848]
[1646658063747,0.19422735,38633.0,38632.0,0.26105298]
[1646658063943,0.97077735,38633.0,38632.0,0.26105298]
[1646658064142,0.97077735,38633.0,38631.0,0.394905]
[1646658064944,0.97077735,38633.0,38631.0,0.2003307]
[1646658065147,1.02077735,38633.0,38631.0,0.379905]
[1646658065444,1.02077735,38633.0,38631.0,0.495016]
[1646658065646,1.02077735,38633.0,38631.0,0.2499]
[1646658066043,1.02477735,38633.0,38632.0,0.395116]
[1646658066243,1.02477735,38633.0,38631.0,0.2999]
[1646658067045,1.02477735,38633.0,38632.0,0.395116]
[1646658067296,1.02077735,38633.0,38632.0,0.395116]
[1646658067493,0.89129135,38633.0,38631.0,0.2999]
[1646658067698,0.89129135,38633.0,38632.0,0.721076]
[1646658067699,0.77655,38633.0,38632.0,0.721076]
[1646658067900,0.77655,38633.0,38632.0,0.921076]
[1646658068097,0.77655,38633.0,38632.0,1.172676]
[1646658068299,0.31667461,38644.0,38639.0,0.05913949]
[1646658068597,0.36945371,38646.0,38644.0,0.395116]
[1646658068598,0.31667461,38646.0,38644.0,0.395116]
[1646658068795,0.61945361,38648.0,38644.0,0.62607771]
[1646658068796,0.7763,38645.0,38644.0,0.62607771]
[1646658068996,0.7763,38645.0,38644.0,0.74513119]
[1646658069201,0.7763,38645.0,38644.0,1.04513119]
[1646658069396,0.7763,38645.0,38644.0,1.03996408]
[1646658069597,0.388002,38645.0,38644.0,0.73996408]
[1646658069795,0.06471648,38646.0,38645.0,1.495116]
[1646658069994,0.06471648,38646.0,38645.0,0.51416948]